bitfinex/quotes_ETHUSD_20250115
["timestamp","ask_amount","ask_price","bid_price","bid_amount"]
[1736969468174,0.02734651,3397.0,3396.9,2.0]
[1736969468175,9.08e-06,3397.0,3396.9,2.0]
[1736969468382,9.08e-06,3397.0,3396.9,8.49386]
[1736969468583,9.08e-06,3397.0,3396.9,43.84756324]
[1736969469328,9.08e-06,3397.0,3396.9,45.61656324]
[1736969469634,9.08e-06,3397.0,3396.9,49.61656324]
[1736969471137,9.08e-06,3397.0,3396.9,47.84756324]
[1736969472323,1.11000908,3397.0,3396.9,43.94386]
[1736969472841,1.11000908,3397.0,3396.9,39.94386]
[1736969473036,1.11000908,3397.0,3396.9,37.0]
[1736969473400,1.38034999,3397.0,3396.9,37.0]
[1736969474114,1.11000908,3397.0,3396.9,37.0]
[1736969474703,2.22000908,3397.0,3396.9,37.0]
[1736969475138,2.22000908,3397.0,3396.9,40.0]
[1736969477233,3.33000908,3397.0,3396.9,40.0]
[1736969479346,3.33000908,3397.0,3396.9,37.0]
[1736969479347,4.98960908,3397.0,3396.9,37.0]
[1736969479658,1.5796,3396.5,3395.4,2.94511]
[1736969479876,4.52381,3396.5,3395.4,2.94511]
[1736969480236,4.52381,3396.5,3396.4,2.0]
[1736969480437,4.52381,3396.5,3396.4,37.0]
[1736969482069,2.6896,3396.5,3396.4,37.0]
[1736969483782,2.95856,3396.5,3396.4,37.0]
[1736969484333,4.06856,3396.5,3396.4,37.0]
[1736969486062,3.7996,3396.5,3396.4,40.0]
[1736969486764,4.9096,3396.5,3396.4,40.0]
[1736969487075,3.33,3396.5,3396.4,43.49429]
[1736969488156,3.33,3396.5,3396.4,45.07379]
[1736969488351,3.33,3396.5,3396.4,43.49429]
[1736969489299,4.44,3396.5,3396.4,43.49429]
[1736969489979,4.44,3396.5,3396.4,40.0]
[1736969490207,5.04196,3396.5,3396.4,37.0]
[1736969490650,5.04196,3396.5,3396.4,40.0]
[1736969491052,4.44,3396.5,3396.4,40.0]
[1736969491754,5.55,3396.5,3396.4,40.0]
[1736969492079,7.1296,3396.5,3396.4,37.0]
[1736969494599,8.2396,3396.5,3396.4,37.0]
[1736969496271,11.1838,3396.5,3396.4,37.0]
[1736969496477,12.596578,3396.5,3396.4,37.0]
[1736969497116,13.706578,3396.5,3396.4,37.0]
[1736969497476,13.706578,3396.5,3396.4,35.0]
[1736969499589,14.816578,3396.5,3396.4,35.0]
[1736969501896,15.926578,3396.5,3396.4,35.0]
[1736969503495,4.45052,3395.9,3395.8,2.0]
[1736969504519,5.56052,3395.9,3395.8,37.0]
[1736969507191,6.67052,3395.9,3395.8,37.0]
[1736969507637,6.67052,3395.9,3395.8,35.0]
[1736969508523,7.10052,3395.9,3395.8,35.0]
[1736969508842,8.130018,3395.9,3395.8,35.0]
[1736969509134,7.880018,3395.9,3395.8,35.0]
[1736969509440,8.130018,3395.9,3395.8,35.0]
[1736969509597,9.240018,3395.9,3395.8,35.0]
[1736969509797,0.25,3395.7,3395.2,2.0]
[1736969510002,2.94559,3394.9,3394.8,2.0]
[1736969510249,4.45699,3394.9,3394.8,2.0]
[1736969510848,4.45699,3394.9,3394.8,37.0]
[1736969511046,4.63299,3394.9,3394.8,37.0]
[1736969511713,4.88299,3394.9,3394.8,35.0]
[1736969511913,6.800822,3394.9,3394.8,35.0]
[1736969512334,7.39240622,3394.9,3394.8,35.0]
[1736969512535,7.39240622,3394.9,3393.4,0.46076779]
[1736969512536,4.45751,3394.3,3394.2,2.0]
[1736969513546,4.45751,3394.3,3394.2,37.0]
[1736969514232,4.45751,3394.3,3394.2,35.0]
[1736969514403,6.307854,3394.3,3394.2,35.0]
[1736969515245,5.56751,3394.3,3394.2,35.0]
[1736969515751,1.11,3394.3,3394.2,37.0]
[1736969515903,1.11,3394.3,3394.2,40.0]
[1736969516305,2.6214,3394.3,3394.2,40.0]
[1736969516643,1.11,3394.3,3394.2,40.0]
[1736969516842,2.22,3394.3,3394.2,35.0]
[1736969517043,5.42825,3394.3,3394.2,35.0]
[1736969518720,6.93965,3394.3,3394.2,35.0]
[1736969519423,8.04965,3394.3,3394.2,35.0]
[1736969521313,8.04965,3394.3,3394.2,37.0]
[1736969522152,9.15965,3394.3,3394.2,35.0]
[1736969524358,10.26965,3394.3,3394.2,35.0]
[1736969526883,6.66,3394.3,3394.2,37.0]
[1736969527040,6.66,3394.3,3394.2,40.0]
[1736969527373,6.66,3394.3,3394.2,43.4962]
[1736969527580,6.66,3394.3,3394.2,42.19220324]
[1736969527729,6.66,3394.3,3394.2,41.8385]
[1736969527933,6.66,3394.3,3394.2,40.2496]
[1736969528154,6.66,3394.3,3394.2,37.2496]
[1736969528343,11.14081,3394.3,3394.2,37.2496]
[1736969528697,12.254891,3394.3,3394.2,35.2496]
[1736969529184,13.364891,3394.3,3394.2,35.2496]
[1736969529970,7.77,3394.3,3394.2,37.2496]
[1736969530389,7.77,3394.3,3394.2,43.1958]
[1736969530665,7.77,3394.3,3394.2,44.7847]
[1736969531272,7.77,3394.3,3394.2,41.8385]
[1736969531639,8.88,3394.3,3394.2,41.8385]
[1736969532136,8.88,3394.3,3394.2,40.2496]
[1736969532968,10.062602,3394.3,3394.2,37.2496]
[1736969533197,14.543412,3394.3,3394.2,35.2496]
[1736969534165,15.653412,3394.3,3394.2,35.2496]
[1736969535002,14.47081,3394.3,3394.2,35.2496]
[1736969535673,9.99,3394.3,3394.2,37.2496]
[1736969536670,11.1,3394.3,3394.2,37.2496]
[1736969539022,12.21,3394.3,3394.2,37.2496]
[1736969540118,12.21,3394.3,3394.2,38.9096]
[1736969540323,12.21,3394.3,3394.2,41.9096]
[1736969540493,12.21,3394.3,3394.2,44.8558]
[1736969541376,13.32,3394.3,3394.2,45.4058]
[1736969543025,8.74269943,3394.3,3394.2,45.4058]
[1736969543173,1.33746198,3394.3,3394.2,46.11229565]
[1736969543371,1.98e-06,3394.3,3394.2,45.75859241]
[1736969543569,1.11,3394.9,3394.8,4.94568]
[1736969543767,1.11,3394.9,3394.8,10.15568]
[1736969544227,1.11,3394.9,3394.8,45.15568]
[1736969544426,9.99,3396.5,3395.8,4.94481]
[1736969544570,9.99,3396.5,3395.8,10.15481]
[1736969545008,9.99,3396.5,3395.8,45.15481]
[1736969545520,9.99,3396.5,3395.8,41.66]
[1736969546230,4.44,3395.9,3395.8,41.66]
[1736969546887,4.44,3395.9,3395.8,45.15481]
[1736969547587,4.44,3395.9,3395.8,41.66]
[1736969548127,4.44,3395.9,3395.8,45.15481]
[1736969548673,5.55,3395.9,3395.8,45.15481]
[1736969549226,5.55,3395.9,3395.8,44.60481]
[1736969549431,5.55,3395.9,3395.8,45.15481]
[1736969550491,5.55,3395.9,3395.8,45.10481]
[1736969551078,6.66,3395.9,3395.8,45.10481]
[1736969551958,3.71528,3395.9,3395.8,45.10481]
[1736969553490,4.82528,3395.9,3395.8,45.10481]
[1736969554043,4.82528,3395.9,3395.8,45.70558141]
[1736969555873,5.93528,3395.9,3395.8,49.70558141]
[1736969557360,5.93528,3395.9,3395.8,45.70558141]
[1736969558451,7.04528,3395.9,3395.8,45.70558141]
[1736969560867,8.15528,3395.9,3395.8,45.70558141]
[1736969562210,8.15528,3395.9,3395.8,49.70558141]
[1736969563401,9.26528,3395.9,3395.8,49.70558141]
[1736969565804,10.37528,3395.9,3395.8,49.70558141]
[1736969566103,10.37528,3395.9,3395.8,45.70558141]
[1736969567701,10.37528,3395.9,3395.8,45.15558141]
[1736969567899,10.37528,3395.9,3395.8,43.15558141]
[1736969568213,10.37528,3395.9,3395.8,45.70558141]
[1736969568448,11.48528,3395.9,3395.8,45.70558141]
[1736969568834,11.48528,3395.9,3395.8,49.70558141]
[1736969569636,8.54056,3395.9,3395.8,49.70558141]
[1736969569811,5.59584,3395.9,3395.8,49.70558141]
[1736969570011,4.12348,3395.9,3395.8,49.70558141]
[1736969570238,1e-05,3395.9,3395.8,50.4120769]
[1736969570437,9.99,3396.5,3396.4,4.94429]
[1736969570735,9.99,3396.5,3396.4,10.08799]
[1736969570944,11.1,3396.5,3396.4,10.08799]
[1736969571268,11.1,3396.5,3396.4,45.08799]
[1736969571770,11.1,3396.5,3396.4,49.08799]
[1736969574043,12.21,3396.5,3396.4,44.49429]
[1736969574268,12.21,3396.5,3396.4,40.49429]
[1736969574680,12.21,3396.5,3396.4,43.49429]
[1736969574891,4.52000908,3397.0,3396.4,43.49429]
[1736969574892,0.00358336,3399.6,3396.9,14.80286]
[1736969575172,0.75340702,3401.2,3401.0,2.0]
[1736969575336,8.87e-06,3401.2,3401.0,4.94031]
[1736969575538,8.87e-06,3401.2,3401.1,39.64574017]
[1736969575876,8.87e-06,3401.2,3401.1,38.0]
[1736969576221,8.87e-06,3401.2,3401.1,35.0]
[1736969576623,0.16555976,3401.2,3401.1,38.0]
[1736969576926,1.65550887,3401.2,3399.3,1.5937]
[1736969577154,1.90550887,3401.2,3399.3,2.94174]
[1736969577337,1.6555,3401.0,3400.6,2.0]
[1736969577852,1.6555,3400.8,3400.7,35.0]
[1736969578037,1.9065,3400.8,3400.7,35.0]
[1736969578363,0.760696,3400.8,3400.7,0.26698989]
[1736969578535,2.416196,3400.8,3400.7,0.26698989]
[1736969578925,2.416196,3400.8,3400.7,35.26698989]
[1736969578926,1.6555,3400.8,3400.7,35.26698989]
[1736969579276,2.7655,3400.8,3400.7,35.26698989]
[1736969579570,2.7655,3400.8,3400.7,38.26698989]
[1736969580070,1.11,3400.8,3400.7,38.74794415]
[1736969580579,1.11,3400.8,3400.7,35.74794415]
[1736969580719,1.11,3400.8,3400.7,35.83983326]
[1736969581496,2.22,3400.8,3400.7,35.83983326]
[1736969582553,2.22,3400.8,3400.7,38.83983326]
[1736969583064,8.87e-06,3401.2,3401.1,2.0]
[1736969583286,8.87e-06,3401.2,3401.1,7.94022]
[1736969583467,8.87e-06,3401.2,3401.1,7.99398411]
[1736969583654,8.87e-06,3401.2,3401.1,42.99398411]
[1736969583849,1.02000887,3401.2,3401.1,40.99398411]
[1736969584152,1.02000887,3401.2,3401.1,37.0]
[1736969584464,1.28755976,3401.2,3401.1,2.69010147]
[1736969585279,1.28755976,3401.2,3401.1,37.69010147]
[1736969585475,1.28755976,3401.2,3401.1,37.0]
[1736969585867,0.82731427,3401.2,3401.1,35.0]
[1736969586402,1.93731427,3401.2,3401.1,37.0]
[1736969588813,3.04731427,3401.2,3401.1,37.0]
[1736969590022,3.03260427,3401.2,3401.1,37.0]
[1736969591065,4.14260427,3401.2,3401.1,37.0]
[1736969591217,3.87505338,3401.2,3401.1,37.0]
[1736969592027,3.87505338,3401.2,3401.1,42.94022]
[1736969593538,4.98505338,3401.2,3401.1,42.94022]
[1736969593724,4.98505338,3401.2,3401.1,44.56982]
[1736969593924,4.98505338,3401.2,3401.1,44.62358411]
[1736969594358,4.98505338,3401.2,3401.1,48.62358411]
[1736969595780,4.97124738,3401.2,3401.1,14.04734657]
[1736969595938,4.3e-06,3401.2,3401.1,14.5026428]
[1736969596339,4.3e-06,3401.2,3401.1,14.31232312]
[1736969596543,0.08359171,3401.9,3401.8,2.0]
[1736969596745,0.08359171,3401.9,3401.8,37.0]
[1736969597666,0.08359171,3401.9,3401.8,42.93962]
[1736969597965,0.08359171,3401.9,3401.8,40.0]
[1736969598371,1.19359171,3401.9,3401.8,40.68873901]
[1736969598665,1.19359171,3401.9,3401.8,40.78059641]
[1736969600184,1.19359171,3401.9,3401.8,43.72021641]
[1736969600752,2.30359171,3401.9,3401.8,40.78059641]
[1736969600938,2.30359171,3401.9,3401.8,43.72021641]
[1736969602283,2.30359171,3401.9,3401.8,49.40356946]
[1736969602951,1.645496,3402.3,3402.2,2.0]
[1736969603288,1.645496,3402.3,3402.2,7.99301673]
[1736969603635,1.645496,3402.3,3402.2,42.99301673]
[1736969604568,1.645496,3402.3,3402.2,43.08487413]
[1736969604880,1.645496,3402.3,3402.2,44.57288823]
[1736969605487,2.755496,3402.3,3402.2,44.57288823]
[1736969605834,1.79208026,3402.3,3402.2,45.63361823]
[1736969606036,1.05339865,3402.3,3402.2,38.63361823]
[1736969606244,0.87383151,3402.3,3402.2,38.63361823]
[1736969606637,0.87383151,3402.3,3402.2,38.5798715]
[1736969607778,0.87383151,3402.3,3402.2,37.78059641]
[1736969607998,1.98383151,3402.3,3402.2,37.78059641]
[1736969609159,1.98383151,3402.3,3402.2,35.78059641]
[1736969609674,2.47646778,3402.3,3402.2,37.78059641]
[1736969609881,1.98383151,3402.3,3402.2,37.78059641]
[1736969610406,4.67143151,3402.3,3402.2,35.78059641]
[1736969610587,7.61061151,3402.3,3402.2,35.78059641]
[1736969611408,7.61061151,3402.3,3402.2,0.78059641]
[1736969612258,7.61061151,3402.3,3402.2,0.68873901]
[1736969612491,8.71593078,3402.3,3402.2,35.68873901]
[1736969612687,9.82593078,3402.3,3402.2,35.68873901]
[1736969615010,5.78143151,3402.3,3402.2,35.68873901]
[1736969615208,6.89143151,3402.3,3402.2,35.68873901]
[1736969615828,1.5776,3402.2,3401.9,0.01316882]
[1736969616123,2.93944,3402.0,3401.9,0.01316882]
[1736969616331,2.74791713,3402.0,3401.9,0.01316882]
[1736969616488,3.71185199,3402.0,3401.9,0.01316882]
[1736969616905,3.71185199,3402.0,3401.9,35.01316882]
[1736969617472,5.28945199,3402.0,3401.9,35.01316882]
[1736969617674,6.39945199,3402.0,3401.9,35.01316882]
[1736969617989,1.11,3402.0,3401.9,35.01316882]
[1736969618189,1.11,3402.0,3401.9,37.01316882]
[1736969618724,1.11,3402.0,3401.9,35.01316882]
[1736969619026,4.04944,3402.0,3401.9,35.01316882]
[1736969619231,5.62704,3402.0,3401.9,35.01316882]
[1736969619523,7.01505015,3402.0,3401.9,35.01316882]
[1736969619972,8.12505015,3402.0,3401.9,35.01316882]
[1736969621606,8.67505015,3402.0,3401.9,35.01316882]
[1736969621996,2.93992,3401.5,3401.0,2.0]
[1736969622402,4.04992,3401.5,3401.0,2.0]
[1736969622697,0.404992,3401.4,3401.0,2.0]
[1736969623052,0.404992,3401.4,3401.3,35.0]
[1736969623790,1.11,3401.5,3401.4,2.0]
[1736969624435,1.11,3401.5,3401.4,39.93996]
[1736969624851,2.22,3401.5,3401.4,39.93996]
[1736969625629,2.22,3401.5,3401.4,44.46606]
[1736969625837,2.22,3401.5,3401.4,44.51981937]
[1736969626329,2.22,3402.0,3401.9,2.0]
[1736969626529,2.22,3402.0,3401.9,7.93953]
[1736969626989,2.22,3402.0,3401.9,39.93953]
[1736969627190,3.33,3402.0,3401.9,39.93953]
[1736969627833,3.33,3402.0,3401.9,37.0]
[1736969628924,3.33,3402.0,3401.9,37.26811784]
[1736969629736,4.44,3402.0,3401.9,37.26811784]
[1736969629891,4.44,3402.0,3401.9,40.20764784]
[1736969630097,4.44,3402.0,3401.9,41.72554784]
[1736969631126,4.44,3402.0,3401.9,44.72554784]
[1736969631997,5.55,3402.0,3401.9,44.72554784]
[1736969633137,5.55,3402.0,3401.9,44.77929931]
[1736969634501,6.66,3402.0,3401.9,44.77929931]
[1736969635940,6.66,3402.0,3401.9,48.77929931]
[1736969636904,7.77,3402.0,3401.9,48.77929931]
[1736969637949,7.77,3402.0,3401.9,49.20542887]
[1736969638719,0.42153,3402.0,3401.9,49.75542887]
[1736969639316,5.31383151,3402.3,3402.2,2.93927]
[1736969639519,5.31383151,3402.3,3402.2,9.99301673]
[1736969640176,3.84424151,3402.3,3402.2,46.51091673]
[1736969640455,1.51e-06,3402.3,3402.2,46.77903457]
[1736969640756,1.51e-06,3402.3,3402.2,42.26113457]
[1736969641835,1.11000151,3402.3,3402.2,42.26113457]
[1736969642655,1.11000151,3402.3,3402.2,38.26113457]
[1736969642860,1.11000151,3402.3,3402.2,35.32186457]
[1736969644622,2.22000151,3402.3,3402.2,35.32186457]
[1736969645847,2.22000151,3402.3,3402.2,35.26811784]
[1736969646478,0.227,3403.2,3402.6,2.0]
[1736969646685,2.93864,3403.0,3402.6,2.0]
[1736969646877,0.316564,3402.9,3402.6,2.0]
[1736969647182,1.11,3403.0,3402.8,35.0]
[1736969647682,1.11,3403.0,3402.6,2.0]
[1736969647977,1.11,3403.0,3402.9,35.26811784]
[1736969648579,4.04858,3403.0,3402.9,35.26811784]
[1736969649394,5.59538,3403.0,3402.9,35.0]
[1736969649559,7.558755,3403.0,3402.9,35.0]
[1736969651354,4.620175,3403.0,3402.9,35.0]
[1736969651543,3.7668,3403.0,3402.9,35.0]
[1736969651750,2.22,3403.0,3402.9,37.0]
[1736969651962,3.33,3403.0,3402.9,37.0]
[1736969652963,3.33,3403.0,3402.9,37.26828239]
[1736969654255,4.44,3403.0,3402.9,37.26828239]
[1736969655208,4.44,3403.0,3402.9,40.20694239]
[1736969656671,5.55,3403.0,3402.9,40.20694239]
[1736969658042,5.55,3403.0,3402.9,48.83724239]
[1736969659106,6.66,3403.0,3402.9,48.83724239]
[1736969659559,1.7171563,3404.6,3404.0,4.93772]
[1736969660108,1.7171563,3404.6,3404.0,39.93772]
[1736969660811,0.1703563,3404.6,3404.0,39.93772]
[1736969661307,0.1703563,3404.6,3404.0,44.83630239]
[1736969661610,2.75906003,3404.1,3404.0,44.83630239]
[1736969661940,3e-08,3404.1,3404.0,44.8900207]
[1736969662112,3e-08,3404.1,3404.0,49.48831254]
[1736969662608,5.15e-06,3404.7,3404.6,4.5675]
[1736969662813,5.15e-06,3404.7,3404.5,2.0]
[1736969663009,5.15e-06,3404.7,3404.6,4.5675]
[1736969663218,5.15e-06,3404.7,3404.6,42.5675]
[1736969663844,1.11000515,3404.7,3404.6,46.5675]
[1736969664039,1.11000515,3404.7,3404.6,43.83578239]
[1736969664303,1.11000515,3404.7,3404.6,39.26828239]
[1736969664426,1.11000515,3404.7,3404.6,42.20548239]
[1736969665125,1.11000515,3404.7,3404.6,44.20548239]
[1736969665324,1.11000515,3404.7,3404.6,40.20548239]
[1736969666214,2.22000515,3404.7,3404.6,40.20548239]
[1736969666719,2.22000515,3404.7,3404.6,37.26828239]
[1736969666919,2.22000515,3404.7,3404.6,40.32199123]
[1736969667817,2.22000515,3404.7,3404.6,43.25919123]
[1736969668035,2.22000515,3404.7,3404.6,44.88949123]
[1736969668644,3.33000515,3404.7,3404.6,44.88949123]
[1736969670023,3.33000515,3404.7,3404.6,44.83578239]
[1736969671077,4.44000515,3404.7,3404.6,44.83578239]
[1736969671371,4.44000515,3404.7,3404.6,48.83578239]
[1736969673257,5.55000515,3404.7,3404.6,48.83578239]
[1736969673589,5.55000515,3404.7,3404.6,49.41849312]
[1736969674940,2.61288515,3404.7,3404.6,49.41849312]
[1736969675174,5.15e-06,3404.7,3404.6,49.41849312]
[1736969675691,5.15e-06,3404.7,3404.6,45.41849312]
[1736969675891,1.11000515,3404.7,3404.6,45.41849312]
[1736969678265,2.22000515,3404.7,3404.6,45.41849312]
[1736969678590,2.22000515,3404.7,3404.6,49.41849312]
[1736969680804,3.33000515,3404.7,3404.6,49.41849312]
[1736969681485,3.33000515,3404.7,3404.6,47.47220196]
[1736969681653,3.33000515,3404.7,3404.6,49.47220196]
[1736969682254,3.33000515,3404.7,3404.6,47.84190196]
[1736969682960,3.33000515,3404.7,3404.6,44.25919123]
[1736969683179,4.44000515,3404.7,3404.6,44.25919123]
[1736969683781,4.44000515,3404.7,3404.6,40.25919123]
[1736969684521,4.44000515,3404.7,3404.6,40.32199123]
[1736969685181,4.44000515,3404.7,3404.6,43.25919123]
[1736969685577,5.55000515,3404.7,3404.6,43.25919123]
[1736969687921,6.66000515,3404.7,3404.6,43.25919123]
[1736969688257,6.66000515,3404.7,3404.6,47.67448746]
[1736969689950,6.66000515,3404.7,3404.6,47.25919123]
[1736969690309,7.77000515,3404.7,3404.6,47.25919123]
[1736969691020,7.77000515,3404.7,3404.6,47.20548239]
[1736969693016,8.88000515,3404.7,3404.6,47.20548239]
[1736969693627,8.88000515,3404.7,3404.6,47.62077862]
[1736969694841,8.88000515,3404.7,3404.6,47.20548239]
[1736969696169,9.99000515,3404.7,3404.6,43.20548239]
[1736969697266,9.99000515,3404.7,3404.6,40.20548239]
[1736969697441,11.14163567,3404.7,3404.6,37.26828239]
[1736969697647,9.99000515,3404.7,3404.6,40.20548239]
[1736969697844,9.99000515,3404.7,3404.6,44.84078239]
[1736969698446,11.10000515,3404.7,3404.6,44.84078239]
[1736969698967,11.10000515,3404.7,3404.6,43.20548239]
[1736969699129,11.10000515,3404.7,3404.6,47.20548239]
[1736969700969,12.21000515,3404.7,3404.6,47.20548239]
[1736969703095,12.21000515,3404.7,3404.6,44.20548239]
[1736969703395,13.32000515,3404.7,3404.6,44.20548239]
[1736969703565,13.32000515,3404.7,3404.6,40.20548239]
[1736969703766,13.32000515,3404.7,3404.6,43.20548239]
[1736969704587,14.85050515,3404.7,3404.6,43.20548239]
[1736969704788,13.32000515,3404.7,3404.6,43.20548239]
[1736969705906,14.43000515,3404.7,3404.6,37.26828239]
[1736969706108,15.87300567,3404.7,3404.6,37.26828239]
[1736969706402,17.40350567,3404.7,3404.6,37.26828239]
[1736969708068,15.96050515,3404.7,3404.6,40.20548239]
[1736969708266,17.07050515,3404.7,3404.6,40.20548239]
[1736969709603,17.07050515,3404.7,3404.6,37.26828239]
[1736969709799,12.60288515,3404.7,3404.6,41.77708239]
[1736969710110,1.2601665,3404.7,3404.6,45.59951646]
[1736969710410,6.5e-06,3404.7,3404.6,45.18496195]
[1736969711004,6.5e-06,3404.7,3404.6,49.46021789]
[1736969712286,9.2e-07,3405.3,3405.2,4.93668]
[1736969712483,4.11e-06,3405.5,3405.3,3.0]
[1736969712685,0.17746011,3405.9,3405.8,7.93616]
[1736969712868,0.17746011,3405.9,3405.8,44.50776]
[1736969713406,7.32e-06,3406.2,3406.1,2.9359]
[1736969713608,1.53408604,3407.3,3406.1,2.9359]
[1736969713609,1.39989962,3407.3,3407.1,2.0]
[1736969713967,1.39989962,3407.3,3407.2,35.0]
[1736969714517,1.94989962,3407.3,3407.2,35.0]
[1736969714680,0.55,3407.3,3407.2,35.26828239]
[1736969715079,0.00359946,3407.8,3407.2,35.26828239]
[1736969715292,1.85971518,3407.7,3407.3,2.93485]
[1736969715692,2.96971518,3407.7,3407.6,35.0]
[1736969716422,2.96971518,3407.7,3407.6,35.26828239]
[1736969716709,4.50021518,3407.7,3407.6,37.26828239]
[1736969717367,5.05021518,3407.7,3407.6,35.26828239]
[1736969717814,4.50021518,3407.7,3407.6,35.26828239]
[1736969718121,3.894836,3407.7,3407.6,40.20289239]
[1736969718610,3.894836,3407.7,3407.6,43.20289239]
[1736969719821,5.46e-06,3407.8,3407.7,5.93453]
[1736969720227,5.46e-06,3407.8,3407.7,9.93453]
[1736969720373,1.11000546,3407.8,3407.7,44.93453]
[1736969721498,5.46e-06,3407.8,3407.7,45.20281239]
[1736969723021,1.11000546,3407.8,3407.7,45.20281239]
[1736969723458,1.11000546,3407.8,3407.7,38.20281239]
[1736969723606,1.11000546,3407.8,3407.7,35.26828239]
[1736969723607,1.39982164,3407.8,3407.7,35.26828239]
[1736969724597,1.94982164,3407.8,3407.7,35.26828239]
[1736969724723,3.56762164,3407.8,3407.7,35.26828239]
[1736969724922,3.56762164,3407.8,3407.7,35.0]
[1736969725450,6.50206164,3407.8,3407.7,35.0]
[1736969725619,7.86206164,3407.8,3407.7,35.0]
[1736969725955,4.12762164,3407.8,3407.7,35.0]
[1736969726154,4.67762164,3407.8,3407.7,35.0]
[1736969726460,7.61206164,3407.8,3407.7,35.0]
[1736969726959,4.67762164,3407.8,3407.7,35.0]
[1736969727325,3.83780546,3407.8,3407.7,35.0]
[1736969727523,3.83780546,3407.8,3407.7,37.0]
[1736969727906,3.83780546,3407.8,3407.7,35.0]
[1736969728107,5.49780546,3407.8,3407.7,35.0]
[1736969730506,6.60780546,3407.8,3407.7,35.0]
[1736969731140,6.05780546,3407.8,3407.7,37.0]
[1736969731950,4.44000546,3407.8,3407.7,37.31403507]
[1736969732171,4.44000546,3407.8,3407.7,40.24856507]
[1736969732832,5.55000546,3407.8,3407.7,40.24856507]
[1736969733774,5.55000546,3407.8,3407.7,37.31403507]
[1736969735272,6.66000546,3407.8,3407.7,37.31403507]
[1736969736293,6.66000546,3407.8,3407.7,40.24856507]
[1736969737597,6.66000546,3407.8,3407.7,37.31403507]
[1736969737766,7.77000546,3407.8,3407.7,37.31403507]
[1736969740255,9.67404164,3407.8,3407.7,37.31403507]
[1736969740650,11.75974164,3407.8,3407.7,35.31403507]
[1736969740977,11.20974164,3407.8,3407.7,35.31403507]
[1736969741897,11.75974164,3407.8,3407.7,35.31403507]
[1736969742061,14.69418164,3407.8,3407.7,35.31403507]
[1736969742576,15.80418164,3407.8,3407.7,35.31403507]
[1736969744164,12.31974164,3407.8,3407.7,35.31403507]
[1736969744871,13.42974164,3407.8,3407.7,35.31403507]
[1736969745198,13.97974164,3407.8,3407.7,35.31403507]
[1736969745504,13.42974164,3407.8,3407.7,35.31403507]
[1736969746001,13.97974164,3407.8,3407.7,35.31403507]
[1736969746355,17.16418164,3407.8,3407.7,35.31403507]
[1736969746564,17.16418164,3407.8,3407.7,35.26595397]
[1736969746801,17.16418164,3407.8,3407.7,35.30248543]
[1736969747503,18.27418164,3407.8,3407.7,35.30248543]
[1736969748061,18.27418164,3407.8,3407.7,35.03653146]
[1736969749388,18.02418164,3407.8,3407.7,35.03653146]
[1736969749754,16.48848164,3407.8,3407.7,35.03653146]
[1736969749989,14.11404164,3407.8,3407.7,35.03653146]
[1736969750198,13.32000546,3407.8,3407.7,37.03653146]
[1736969750930,13.25297512,3407.8,3407.7,44.78945134]
[1736969751064,5.91754512,3407.8,3407.7,45.17149757]
[1736969751256,0.02951095,3408.2,3408.1,2.0]
[1736969751257,5.11e-06,3408.2,3408.1,2.0]
[1736969751477,5.11e-06,3408.2,3408.1,9.86692623]
[1736969751808,5.11e-06,3408.2,3408.1,9.90335255]
[1736969752016,5.11e-06,3408.2,3408.1,44.90335255]
[1736969752509,5.62e-06,3408.3,3408.2,5.9341]
[1736969752858,5.62e-06,3408.3,3408.2,5.97022979]
[1736969753060,9.57e-06,3408.4,3408.3,5.93401]
[1736969753260,9.57e-06,3408.4,3408.3,11.48471]
[1736969753493,9.57e-06,3408.4,3408.3,11.78851593]
[1736969753883,9.57e-06,3408.4,3408.3,46.78851593]
[1736969754208,9.57e-06,3408.4,3408.3,48.78851593]
[1736969754912,1.11000957,3408.4,3408.3,48.78851593]
[1736969756113,1.11000957,3408.4,3408.3,41.30380593]
[1736969756416,1.11000957,3408.4,3408.3,37.30380593]
[1736969757178,2.22000957,3408.4,3408.3,37.30380593]
[1736969758713,3.83760957,3408.4,3408.3,37.30380593]
[1736969759014,4.22137053,3408.4,3408.3,37.30380593]
[1736969759371,4.77137053,3408.4,3408.3,37.30380593]
[1736969759712,5.88137053,3408.4,3408.3,37.30380593]
[1736969760423,9.06529053,3408.4,3408.3,35.30380593]
[1736969760916,1.6176,3407.7,3407.3,2.0]
[1736969761124,0.55,3407.5,3407.3,2.0]
[1736969761573,0.55,3407.6,3407.3,2.0]
[1736969761923,3.48461,3407.6,3407.5,35.0]
[1736969762136,4.59461,3407.6,3407.5,35.0]
[1736969763116,1.66,3407.6,3407.5,37.0]
[1736969763275,1.66,3407.6,3407.5,35.0]
[1736969763475,1.66,3407.6,3407.5,37.0]
[1736969763672,2.2812,3407.6,3407.5,35.0]
[1736969764816,3.3912,3407.6,3407.5,35.0]
[1736969765017,6.32581,3407.6,3407.5,35.0]
[1736969766274,7.84211,3407.6,3407.5,35.0]
[1736969766714,8.09211,3407.6,3407.5,35.0]
[1736969766877,7.84211,3407.6,3407.5,35.0]
[1736969767077,9.20211,3407.6,3407.5,35.0]
[1736969767306,8.95211,3407.6,3407.5,35.0]
[1736969767510,9.20211,3407.6,3407.5,35.0]
[1736969768176,9.20211,3407.6,3407.5,35.02874239]
[1736969768383,8.95211,3407.6,3407.5,35.02874239]
[1736969768611,9.20211,3407.6,3407.5,35.02874239]
[1736969769176,8.40211,3407.6,3407.5,35.02874239]
[1736969769726,9.51211,3407.6,3407.5,35.02874239]
[1736969770630,10.06211,3407.6,3407.5,35.02874239]
[1736969771328,5.0612,3407.6,3407.5,35.02874239]
[1736969771529,4.44,3407.6,3407.5,37.02874239]
[1736969771838,4.44,3407.6,3407.5,39.96344239]
[1736969772139,5.55,3407.6,3407.5,44.49294239]
[1736969773415,5.55,3407.6,3407.5,44.75946544]
[1736969774704,6.66,3407.6,3407.5,44.75946544]